bitfinex-derivatives/quotes_SOLF0:USTF0_20260104
["timestamp","ask_amount","ask_price","bid_price","bid_amount"]
[1767491012811,5.830241,133.56,133.51,3.00544252]
[1767491013011,5.830241,133.55,133.51,3.00544252]
[1767491013212,6.7409,133.58,133.51,3.00544252]
[1767491013507,0.05366311,133.56,133.53,0.05070306]
[1767491016511,0.05366311,133.56,133.53,3.05614558]
[1767491016712,90.43024451,133.61,133.53,3.05614558]
[1767491016908,5.83462563,133.6,133.53,3.05614558]
[1767491017111,5.83462563,133.59,133.53,3.05614558]
[1767491017304,90.43024451,133.61,133.53,3.05614558]
[1767491017305,90.43024451,133.61,133.53,6.79330306]
[1767491017505,5.83411691,133.6,133.54,3.00544252]
[1767491017817,0.05018712,133.58,133.56,0.05629767]
[1767491019210,0.05018712,133.58,133.52,3.00544252]
[1767491019409,1.91024451,133.59,133.52,3.00544252]
[1767491020310,0.0575062,133.57,133.54,0.05747161]
[1767491023617,0.0575062,133.57,133.52,3.00544252]
[1767491024022,0.0575062,133.57,133.49,3.00544252]
[1767491024221,1.91024451,133.57,133.49,3.00544252]
[1767491024617,0.05629534,133.54,133.52,0.05694097]
[1767491031721,0.05629534,133.54,133.5,3.00544252]
[1767491031722,0.05629534,133.54,133.47,3.00544252]
[1767491032819,0.05629534,133.54,133.49,0.05743871]
[1767491035331,0.05629534,133.54,133.49,3.06288123]
[1767491050234,6.7398,133.6,133.53,2.98487073]
[1767491050436,5.84149481,133.59,133.53,2.98487073]
[1767491050641,1.22262398,133.62,133.55,2.98487073]
[1767491050841,5.8426392,133.61,133.55,2.98487073]
[1767491051038,5.8426392,133.6,133.55,2.98487073]
[1767491051238,1.22262398,133.62,133.55,2.98487073]
[1767491051444,0.05671277,133.59,133.57,2.98487073]
[1767491051841,1.22262398,133.62,133.57,2.98487073]
[1767491052036,5.8410169,133.61,133.57,2.98487073]
[1767491052241,1.22262398,133.62,133.57,2.98487073]
[1767491052947,0.04930625,133.61,133.57,2.98487073]
[1767491053637,1.22262398,133.6,133.56,0.0500697]
[1767491061854,1.27193023,133.61,133.56,0.0500697]
[1767491062048,5.83020549,133.6,133.56,0.0500697]
[1767491062348,1.27193023,133.61,133.56,0.0500697]
[1767491062548,5.82991018,133.6,133.56,0.0500697]
[1767491062844,1.27193023,133.61,133.56,0.0500697]
[1767491063049,5.82991018,133.6,133.56,0.0500697]
[1767491063252,1.27193023,133.61,133.56,0.0500697]
[1767491063450,5.82996663,133.6,133.56,0.0500697]
[1767491063752,1.27193023,133.61,133.56,0.0500697]
[1767491063947,5.82995764,133.6,133.56,0.0500697]
[1767491064250,1.27193023,133.61,133.56,0.0500697]
[1767491064452,5.82961933,133.6,133.56,0.0500697]
[1767491064651,1.27193023,133.61,133.56,0.0500697]
[1767491064850,5.82961933,133.6,133.56,0.0500697]
[1767491065051,1.27193023,133.61,133.56,0.0500697]
[1767491065252,5.82929459,133.6,133.56,0.0500697]
[1767491065454,1.27193023,133.61,133.56,0.0500697]
[1767491065655,5.82914145,133.6,133.56,0.0500697]
[1767491065853,1.27193023,133.61,133.56,0.0500697]
[1767491066055,5.82914145,133.6,133.56,0.0500697]
[1767491066256,1.27193023,133.61,133.56,0.0500697]
[1767491066552,5.82868837,133.6,133.56,0.0500697]
[1767491066754,1.27193023,133.61,133.56,0.0500697]
[1767491066947,5.82868837,133.6,133.56,0.0500697]
[1767491067144,10.61430536,133.69,133.58,2.98487073]
[1767491067352,10.61430536,133.69,133.63,1.22262398]
[1767491067549,1.22262398,133.73,133.65,4.20749471]
[1767491067750,5.74932225,133.72,133.65,4.20749471]
[1767491067949,5.74932225,133.71,133.65,4.20749471]
[1767491068145,89.70262398,133.73,133.65,4.20749471]
[1767491068357,0.04987126,133.69,133.67,0.05151646]
[1767491072556,0.04987126,133.69,133.63,9.92656446]
[1767491072756,0.04987126,133.69,133.65,3.18896446]
[1767491073355,0.04987126,133.69,133.66,0.05163827]
[1767491078669,1.22262398,133.71,133.66,3.24060273]
[1767491079763,0.05194836,133.7,133.66,3.24060273]
[1767491080670,88.44,133.73,133.66,3.24060273]
[1767491081874,0.05575081,133.71,133.66,3.24060273]
[1767491082068,96.39472398,133.75,133.68,3.18896446]
[1767491083170,0.05484028,133.73,133.7,0.05420454]
[1767491083874,88.44,133.75,133.7,3.243169]
[1767491084775,0.05507951,133.74,133.7,3.243169]
[1767491085571,1.22262398,133.78,133.7,3.243169]
[1767491085772,89.64262398,133.78,133.7,3.18896446]
[1767491086575,0.04837381,133.75,133.73,0.05235043]
[1767491087966,88.42,133.78,133.73,0.05235043]
[1767491088277,88.42,133.78,133.73,3.24131489]
[1767491089073,88.4,133.81,133.73,4.46393887]
[1767491089267,88.4,133.81,133.76,0.04770767]
[1767491089465,1.22262398,133.8,133.76,0.04770767]
[1767491089871,88.4,133.81,133.76,0.04770767]
[1767491090067,127.1159,133.85,133.76,3.23667213]
[1767491090068,6.7271,133.85,133.76,3.23667213]
[1767491090268,0.05284359,133.82,133.79,0.04928859]
[1767491091974,0.05284359,133.82,133.79,3.23825305]
[1767491092177,1.22262398,133.85,133.79,3.23825305]
[1767491092975,88.4,133.86,133.79,3.23825305]
[1767491093175,1.22262398,133.85,133.79,3.23825305]
[1767491093473,1.22262398,133.83,133.79,0.04928859]
[1767491097073,1.22262398,133.85,133.79,3.23825305]
[1767491098480,90.26183364,133.86,133.79,3.23825305]
[1767491098680,1.90183364,133.81,133.76,3.18896446]
[1767491098977,1.90183364,133.78,133.67,104.7824]
[1767491099173,90.26183364,133.78,133.69,6.7346]
[1767491099785,0.04932325,133.75,133.72,0.05024822]
[1767491101470,0.04932325,133.75,133.68,3.01652531]
[1767491101675,90.26183364,133.78,133.68,3.01652531]
[1767491102786,0.05448328,133.74,133.72,0.0492926]
[1767491104281,2.69893888,133.79,133.72,3.06581791]
[1767491104683,92.98728952,133.82,133.72,3.06581791]
[1767491104878,92.98728952,133.82,133.72,3.01652531]
[1767491105280,92.98728952,133.82,133.76,0.05587491]
[1767491106487,92.98728952,133.82,133.71,9.75022531]
[1767491106488,2.74257607,133.79,133.71,9.75022531]
[1767491107490,2.74257607,133.79,133.74,0.05046337]
[1767491111291,5.72150182,133.78,133.74,0.05046337]
[1767491111491,2.74257607,133.79,133.74,0.05046337]
[1767491111795,5.72210301,133.78,133.74,0.05046337]
[1767491111996,0.05485507,133.77,133.74,0.05046337]
[1767491114393,0.05485507,133.77,133.74,3.06698868]
[1767491120587,0.05485507,133.77,133.74,0.05046337]
[1767491120789,0.05485507,133.77,133.72,3.01652531]
[1767491121202,10.4893855,133.76,133.7,3.01652531]
[1767491121397,5.73519019,133.75,133.7,3.01652531]
[1767491121994,0.05118882,133.74,133.71,0.05109815]
[1767491125698,2.93857326,133.8,133.71,3.06762346]
[1767491125903,5.74423307,133.79,133.71,3.01652531]
[1767491126201,5.74423307,133.78,133.71,3.01652531]
[1767491126403,2.93857326,133.8,133.71,3.01652531]
[1767491126700,0.05267255,133.77,133.74,0.05598032]
[1767491129205,3.01166733,133.77,133.69,3.01652531]
[1767491129400,2.95899478,133.77,133.69,3.01652531]
[1767491130201,0.0473359,133.74,133.72,0.05752738]
[1767491130401,4.92908582,133.79,133.72,3.32944942]
[1767491130600,5.74579087,133.78,133.72,3.32944942]
[1767491130801,4.92908582,133.79,133.72,3.32944942]
[1767491131003,5.74582134,133.78,133.72,3.32944942]
[1767491131309,5.74582134,133.77,133.72,3.32944942]
[1767491131497,0.05214251,133.76,133.72,3.32944942]
[1767491131701,3.02725218,133.79,133.72,3.32944942]
[1767491131902,95.0897,133.8,133.72,3.32944942]
[1767491132208,5.74683845,133.79,133.73,3.27192204]
[1767491132402,95.0897,133.8,133.73,3.27192204]
[1767491132911,0.05140524,133.78,133.75,0.05288915]
[1767491139223,3.11275793,133.78,133.75,0.05288915]
[1767491140120,0.05140524,133.78,133.75,3.37089018]
[1767491144614,0.05140524,133.78,133.75,0.05288915]
[1767491148235,11.69138633,133.83,133.75,3.37089018]
[1767491148525,5.76899478,133.82,133.75,3.37089018]
[1767491148830,5.76899478,133.81,133.75,3.37089018]
[1767491149129,5.76899478,133.8,133.75,3.37089018]
[1767491149326,100.05138633,133.83,133.75,3.37089018]
[1767491149531,5.76867922,133.82,133.75,3.37089018]
[1767491149831,5.76867922,133.81,133.75,3.37089018]
[1767491150031,5.76867922,133.8,133.75,3.37089018]
[1767491150232,100.05138633,133.83,133.75,3.37089018]
[1767491150432,5.76875377,133.82,133.75,3.37089018]
[1767491150624,5.76875377,133.81,133.75,3.37089018]
[1767491150824,5.76875377,133.8,133.75,3.37089018]
[1767491151025,100.05138633,133.83,133.75,3.37089018]
[1767491151224,5.76876703,133.82,133.75,3.37089018]
[1767491151425,5.76876703,133.81,133.75,3.37089018]
[1767491151727,100.05138633,133.83,133.75,3.37089018]
[1767491151728,5.76876703,133.8,133.75,3.37089018]
[1767491151929,3.06135269,133.82,133.75,3.37089018]
[1767491152131,5.76855209,133.81,133.75,3.37089018]
[1767491152429,5.76855209,133.8,133.75,3.37089018]
[1767491152630,3.06135269,133.82,133.75,3.37089018]
[1767491152829,5.76779714,133.81,133.75,3.37089018]
[1767491153036,5.76779714,133.8,133.75,3.37089018]
[1767491153234,3.06135269,133.82,133.75,3.37089018]
[1767491153436,5.76710763,133.81,133.75,3.37089018]
[1767491153729,3.06135269,133.82,133.75,3.37089018]
[1767491153934,5.76710763,133.81,133.75,3.37089018]
[1767491154138,3.06135269,133.82,133.75,3.37089018]
[1767491154433,5.76710763,133.81,133.75,3.37089018]
[1767491154635,3.06135269,133.82,133.75,3.37089018]
[1767491154831,5.76645154,133.81,133.75,3.37089018]
[1767491155020,3.06135269,133.82,133.75,3.37089018]
[1767491155226,5.76645154,133.81,133.75,3.37089018]
[1767491155436,0.03983053,133.79,133.75,3.37089018]
[1767491156834,3.06135269,133.85,133.77,3.31800103]
[1767491157028,5.76817111,133.84,133.77,3.31800103]
[1767491157229,5.76817111,133.83,133.77,3.31800103]
[1767491157431,3.06135269,133.85,133.77,3.31800103]
[1767491157629,5.76649455,133.84,133.77,3.31800103]
[1767491157932,5.76649455,133.83,133.79,0.04960724]
[1767491158138,3.06135269,133.85,133.79,0.04960724]
[1767491158335,5.76649014,133.84,133.79,0.04960724]
[1767491158530,3.06135269,133.85,133.79,0.04960724]
[1767491158737,5.76474829,133.84,133.79,0.04960724]
[1767491158931,3.06135269,133.85,133.79,0.04960724]
[1767491159127,5.7650703,133.84,133.79,3.36760827]
[1767491159327,3.06135269,133.85,133.79,3.36760827]
[1767491161429,4.56205603,133.82,133.79,0.04960724]
[1767491161630,4.56205603,133.82,133.76,9.86301097]
[1767491162533,4.56205603,133.82,133.78,0.05698972]
[1767491162732,0.04960725,133.8,133.78,0.05698972]
[1767491165536,4.58008857,133.86,133.78,3.18880069]
[1767491165739,4.58008857,133.86,133.8,3.13181097]
[1767491166434,4.58008857,133.86,133.82,0.04990607]
[1767491167043,3.36305761,133.86,133.82,0.04990607]
[1767491167239,1.21703096,133.87,133.82,0.04990607]
[1767491169339,3.36744195,133.88,133.82,0.04990607]
[1767491169547,6.7246,133.9,133.83,3.13181097]
[1767491169548,4.59726394,133.9,133.83,3.13181097]
[1767491169741,5.75026379,133.89,133.83,3.13181097]
[1767491169933,3.38023298,133.89,133.85,0.05731158]
[1767491171841,1.21703096,133.88,133.85,0.05731158]
[1767491173046,4.60969305,133.88,133.85,0.05731158]
[1767491173352,4.60969305,133.88,133.81,3.13181097]
[1767491174354,0.05134996,133.86,133.83,0.05696363]
[1767491184651,0.05134996,133.86,133.79,1.21703096]
[1767491184652,3.38097221,133.85,133.79,3.13181097]
[1767491185553,3.38097221,133.85,133.81,0.04942169]
[1767491188656,0.05134996,133.86,133.81,0.04942169]
[1767491189267,3.44665494,133.86,133.81,0.04942169]
[1767491193762,3.18164633,133.84,133.81,0.04942169]
[1767491198165,3.18164633,133.79,133.68,3.33952103]
[1767491198368,97.22114307,133.78,133.69,3.33952103]
[1767491198671,3.18164633,133.77,133.69,4.55655199]
[1767491198869,3.18164633,133.77,133.7,3.33952103]
[1767491199278,0.05361343,133.75,133.72,0.04778013]
[1767491199471,4.45229072,133.75,133.68,3.33952103]
[1767491199671,4.39867729,133.75,133.68,3.33952103]
[1767491200174,3.18164633,133.75,133.68,3.33952103]
[1767491200577,0.05007541,133.73,133.7,0.054292]
[1767491204581,3.23172174,133.73,133.67,1.21703096]
[1767491204780,3.23172174,133.73,133.67,4.55655199]
[1767491205283,0.05007541,133.73,133.68,3.33952103]
[1767491205675,0.05007541,133.73,133.69,3.38809895]
[1767491206992,3.23172174,133.73,133.69,0.04857792]
[1767491207179,4.4487527,133.73,133.69,0.04857792]
[1767491216187,92.8087527,133.73,133.69,0.04857792]
[1767491216389,91.59172174,133.73,133.69,0.04857792]
[1767491216895,3.23172174,133.73,133.69,0.04857792]
[1767491218296,91.59172174,133.73,133.69,0.04857792]
[1767491221403,3.23172174,133.73,133.69,0.04857792]
[1767491221701,3.43834015,133.72,133.64,6.7372]
[1767491221901,3.43834015,133.72,133.64,10.11931614]
[1767491222603,3.39161443,133.65,133.57,3.38211614]
[1767491222906,0.05600606,133.62,133.6,0.05686605]
[1767491225698,0.05600606,133.62,133.55,3.38211614]
[1767491226701,0.05600606,133.62,133.57,0.04838375]
[1767491227503,3.45684465,133.62,133.57,0.04838375]
[1767491231100,88.42,133.61,133.54,3.38211614]
[1767491231506,91.77959305,133.61,133.54,3.38211614]
[1767491232302,0.05562075,133.59,133.56,0.05475256]
[1767491234409,3.420642,133.59,133.56,0.05475256]
[1767491234603,3.420642,133.59,133.52,3.38211614]
[1767491235807,3.420642,133.59,133.54,0.05610383]
[1767491236109,3.420642,133.59,133.5,6.7444]
[1767491236110,3.36678055,133.58,133.5,6.7444]
[1767491236611,3.36678055,133.58,133.5,10.12651614]
[1767491237106,3.36678055,133.58,133.53,0.04805035]
[1767491237410,0.05096486,133.55,133.53,0.04805035]
[1767491243309,3.42968078,133.55,133.48,6.7454]
[1767491243618,3.42968078,133.55,133.48,10.12751614]
[1767491244411,3.33419196,133.54,133.5,0.04842836]
[1767491244713,0.05748708,133.53,133.5,0.04842836]
[1767491246003,3.28745722,133.52,133.45,3.38211614]
[1767491246201,3.28745722,133.52,133.43,3.38211614]
[1767491246403,106.78094636,133.56,133.46,3.38211614]
[1767491246404,91.7692633,133.54,133.46,3.38211614]
[1767491247117,0.05516184,133.51,133.49,0.04966065]
[1767491252209,3.31013678,133.57,133.5,3.4807131]
[1767491252605,3.31013678,133.57,133.51,6.7438]
[1767491252802,3.31013678,133.57,133.51,10.2245131]
[1767491253009,3.31168126,133.6,133.51,10.2245131]
[1767491253211,0.05118799,133.57,133.54,0.05331121]
[1767491254202,0.05118799,133.57,133.54,3.53402431]
[1767491254404,3.31315804,133.63,133.56,3.4807131]
[1767491255410,0.04810073,133.61,133.58,0.05433731]
[1767491256902,0.04810073,133.61,133.56,3.4807131]
[1767491257815,0.04810073,133.61,133.57,0.05638073]
[1767491259405,3.42021645,133.61,133.57,0.05638073]
[1767491262218,3.42021645,133.61,133.54,3.4807131]
[1767491263520,3.42021645,133.61,133.56,0.05649702]
[1767491263521,5.81557672,133.6,133.56,0.05649702]
[1767491263716,3.42021645,133.61,133.56,0.05649702]
[1767491264013,5.81564772,133.6,133.56,0.05649702]
[1767491264210,3.42021645,133.61,133.56,0.05649702]
[1767491264412,5.82223725,133.6,133.56,0.05649702]
[1767491264612,3.42021645,133.61,133.56,0.05649702]
[1767491264913,5.82223725,133.6,133.56,0.05649702]
[1767491265114,3.42021645,133.61,133.56,0.05649702]
[1767491265309,5.82291171,133.6,133.56,0.05649702]
[1767491265613,3.42021645,133.61,133.56,0.05649702]
[1767491265814,5.82290444,133.6,133.56,0.05649702]
[1767491266012,3.42021645,133.61,133.56,0.05649702]
[1767491266209,5.82290444,133.6,133.56,0.05649702]
[1767491266414,5.82290444,133.59,133.56,0.05649702]
[1767491266616,3.42021645,133.61,133.56,0.05649702]
[1767491266817,5.83057986,133.6,133.56,0.05649702]
[1767491267120,5.83057986,133.59,133.56,0.05649702]
[1767491267421,3.42021645,133.61,133.56,0.05649702]
[1767491267722,5.83756079,133.6,133.56,0.05649702]
[1767491267924,5.83756079,133.59,133.56,0.05649702]
[1767491268123,5.8375052,133.58,133.56,0.05649702]
[1767491268314,3.42021645,133.61,133.56,0.05649702]
[1767491268510,5.83877047,133.6,133.56,0.05649702]
[1767491268716,5.83877047,133.59,133.56,0.05649702]
[1767491268916,5.83877047,133.58,133.56,0.05649702]
[1767491269220,3.42021645,133.61,133.56,0.05649702]
[1767491269426,5.8401098,133.6,133.56,0.05649702]
[1767491269622,5.8401098,133.59,133.56,0.05649702]
[1767491269815,3.42021645,133.61,133.56,0.05649702]
[1767491270017,5.8401098,133.6,133.56,0.05649702]
[1767491270217,5.8401098,133.59,133.56,0.05649702]
[1767491270411,3.42021645,133.61,133.56,0.05649702]
[1767491270616,5.84191632,133.6,133.56,0.05649702]
[1767491270824,5.84191632,133.59,133.56,0.05649702]
[1767491271025,3.42021645,133.61,133.56,0.05649702]
[1767491271226,5.8430152,133.6,133.56,0.05649702]
[1767491271425,5.8430152,133.59,133.56,0.05649702]
[1767491271627,3.42021645,133.61,133.56,0.05649702]
[1767491271828,5.84379756,133.6,133.56,0.05649702]
[1767491272127,5.84379756,133.59,133.56,0.05649702]
[1767491272428,3.42021645,133.61,133.56,0.05649702]
[1767491272723,5.8432515,133.6,133.56,0.05649702]
[1767491272918,5.8432515,133.59,133.56,0.05649702]
[1767491273115,3.42021645,133.61,133.56,0.05649702]
[1767491273318,5.84393801,133.6,133.56,0.05649702]
[1767491273526,5.84393801,133.59,133.56,0.05649702]
[1767491273821,3.42021645,133.61,133.56,0.05649702]
[1767491274022,5.84393801,133.6,133.56,0.05649702]
[1767491274220,5.84393801,133.59,133.56,0.05649702]
[1767491274419,3.42021645,133.61,133.56,0.05649702]
[1767491274625,5.84463829,133.6,133.56,0.05649702]
[1767491274826,5.84463829,133.59,133.56,0.05649702]
[1767491275024,3.42021645,133.61,133.56,0.05649702]
[1767491275220,3.29193147,133.59,133.56,0.05649702]
[1767491276325,1.90867152,133.58,133.48,3.4807131]
[1767491276524,3.22657294,133.56,133.48,3.4807131]
[1767491276722,3.22657294,133.56,133.49,3.4807131]
[1767491277425,0.05243502,133.54,133.51,0.05009726]
[1767491278332,3.22227568,133.58,133.51,3.53081036]
[1767491279532,0.05631687,133.56,133.51,3.53081036]
[1767491280634,0.05631687,133.56,133.51,4.75271666]
[1767491281835,0.05631687,133.56,133.52,3.3975774]
[1767491285233,0.05631687,133.56,133.52,4.6194837]
[1767491287445,0.05631687,133.56,133.52,3.3975774]
[1767491291346,0.05631687,133.56,133.52,4.6194837]
[1767491293048,0.05631687,133.56,133.53,3.3975774]
[1767491297747,0.05631687,133.56,133.51,8.01580356]
[1767491297958,3.08984737,133.54,133.47,10.1433774]
[1767491298162,5.88400722,133.53,133.47,10.1433774]
[1767491298342,3.08984737,133.54,133.47,10.1433774]
[1767491298545,5.88147261,133.53,133.47,10.1433774]
[1767491298849,3.08984737,133.54,133.47,10.1433774]
[1767491299049,0.05043067,133.51,133.49,0.05059815]
[1767491300746,3.08040847,133.55,133.49,3.44817555]
[1767491301048,5.87524306,133.54,133.49,3.44817555]
[1767491301255,5.87524306,133.53,133.49,3.44817555]
[1767491301453,4.30231477,133.55,133.49,3.44817555]
[1767491301653,5.87412922,133.54,133.49,3.44817555]
[1767491301855,5.92534778,133.53,133.49,3.44817555]
[1767491302057,0.05121856,133.53,133.49,3.44817555]
[1767491302556,0.05121856,133.53,133.49,0.05059815]
[1767491304559,0.05121856,133.53,133.49,3.44817555]
[1767491309251,88.5,133.57,133.49,3.44817555]
[1767491309252,4.38120012,133.58,133.5,3.3975774]
[1767491309453,5.86671935,133.57,133.52,3.3975774]
[1767491309652,3.15929382,133.58,133.52,3.3975774]
[1767491309851,5.87204136,133.57,133.52,3.3975774]
[1767491310058,3.15929382,133.58,133.52,3.3975774]
[1767491310258,0.05627947,133.56,133.54,0.05567124]
[1767491319066,91.62940283,133.6,133.54,3.50830017]
[1767491319270,5.87554271,133.59,133.54,3.50830017]
[1767491319464,91.62940283,133.6,133.54,3.50830017]
[1767491319764,5.8758915,133.59,133.54,3.50830017]
[1767491319965,4.40509506,133.59,133.54,0.05567124]
[1767491320168,0.05139466,133.58,133.54,0.05567124]
[1767491322272,3.22937658,133.58,133.54,0.05567124]
[1767491325478,9.97007658,133.58,133.5,4.67461187]
[1767491325779,3.16812612,133.56,133.5,3.45262893]
[1767491326577,0.05120231,133.54,133.5,3.45262893]
[1767491326778,0.05120231,133.54,133.52,0.0550711]
[1767491336392,0.05120231,133.54,133.48,3.45262893]
[1767491336580,0.05120231,133.54,133.48,4.67461187]
[1767491337088,0.05120231,133.54,133.49,3.45262893]
[1767491337590,0.05120231,133.54,133.5,0.05550682]
[1767491340694,3.1895518,133.54,133.5,0.05550682]
[1767491341495,0.05120231,133.54,133.5,3.39468826]
[1767491346714,3.17771971,133.54,133.5,0.05550682]
[1767491346908,8.99138009,133.53,133.47,3.33918144]
[1767491347109,3.1265174,133.53,133.47,3.33918144]
[1767491347512,3.12459064,133.51,133.45,3.33918144]
[1767491347708,5.86327475,133.5,133.45,3.33918144]
[1767491347903,3.12459064,133.51,133.45,3.33918144]
[1767491348107,0.05727854,133.49,133.45,3.33918144]
[1767491348510,0.05727854,133.49,133.46,0.04999318]
[1767491349214,0.05727854,133.49,133.45,3.22992225]
[1767491350406,91.72874799,133.53,133.45,3.22992225]
[1767491350704,5.85836231,133.52,133.45,3.22992225]
[1767491350905,91.72874799,133.53,133.45,3.22992225]
[1767491351207,5.85920838,133.52,133.45,3.22992225]
[1767491351398,91.72874799,133.53,133.45,3.22992225]
[1767491351598,0.0545175,133.5,133.47,3.38871021]
[1767491352704,88.5,133.53,133.47,3.38871021]
[1767491352908,3.31433115,133.55,133.47,3.38871021]
[1767491353211,5.85520912,133.54,133.47,3.38871021]
[1767491353413,3.31433115,133.55,133.47,3.38871021]
[1767491353717,0.05639809,133.52,133.47,3.38871021]
[1767491353915,0.05639809,133.52,133.48,3.33918144]
[1767491355113,98.57553115,133.57,133.48,3.33918144]
[1767491355316,5.85561735,133.56,133.48,3.33918144]
[1767491355519,98.57553115,133.57,133.48,3.33918144]
[1767491355818,9.16988962,133.56,133.48,3.33918144]
[1767491356016,0.05421763,133.53,133.51,0.05651475]
[1767491359622,3.36854878,133.53,133.47,3.33918144]
[1767491360722,3.36854878,133.53,133.49,0.05127071]
[1767491366222,0.05421763,133.53,133.49,0.05127071]
[1767491369722,3.31433115,133.57,133.49,1.96164672]
[1767491369930,5.86091868,133.56,133.5,3.33918144]
[1767491370130,3.31433115,133.57,133.5,3.33918144]
[1767491370332,5.8609441,133.56,133.5,3.33918144]
[1767491370635,3.31433115,133.57,133.5,3.33918144]
[1767491370823,0.04820207,133.55,133.52,0.04918767]
[1767491375132,0.04820207,133.55,133.52,3.45315633]
[1767491376129,3.29835848,133.59,133.52,3.45315633]
[1767491376328,5.85921888,133.58,133.52,3.45315633]
[1767491376631,3.29835848,133.59,133.52,3.45315633]
[1767491377134,0.05499883,133.57,133.52,3.45315633]
[1767491377633,3.29835848,133.61,133.54,3.40396866]
[1767491377829,5.85721845,133.6,133.54,3.40396866]
[1767491378035,3.29835848,133.61,133.54,3.40396866]
[1767491378236,9.15586856,133.6,133.54,3.40396866]
[1767491378433,3.29835848,133.6,133.54,3.40396866]
[1767491378626,0.05736164,133.58,133.56,0.05236131]
[1767491378825,3.35572012,133.58,133.56,0.05236131]
[1767491379030,3.35572012,133.58,133.52,10.14726866]
[1767491379331,3.35572012,133.58,133.52,3.40396866]
[1767491379936,3.35572012,133.58,133.54,0.0552549]
[1767491389843,117.17424916,133.63,133.54,0.0552549]
[1767491389844,3.29835848,133.68,133.57,5.31434467]
[1767491390142,3.29835848,133.65,133.57,3.40396866]
[1767491390444,7.76160674,133.67,133.57,3.40396866]
[1767491390445,3.29835848,133.64,133.57,3.40396866]
[1767491391042,0.05067686,133.62,133.59,0.05275735]
[1767491391243,3.29835848,133.66,133.59,3.45672601]
[1767491391449,3.29835848,133.66,133.59,3.40396866]
[1767491392545,0.04856532,133.64,133.61,0.05043203]
[1767491399154,3.29835848,133.66,133.61,3.45440069]
[1767491399351,3.29835848,133.69,133.61,3.45440069]
[1767491399550,3.29835848,133.69,133.61,3.40396866]
[1767491400144,3.29835848,133.69,133.62,3.39001853]
[1767491400353,3.29835848,133.69,133.64,0.05192227]
[1767491400354,0.05209361,133.66,133.64,0.05192227]
[1767491402459,3.29835848,133.69,133.64,0.05192227]
[1767491403451,0.04778018,133.68,133.64,0.05192227]
[1767491403655,3.21607159,133.68,133.64,0.05192227]
[1767491409467,0.04778018,133.68,133.64,3.4419408]
[1767491409962,3.16829141,133.71,133.66,3.39001853]
[1767491410160,11.1212612,133.73,133.66,3.39001853]
[1767491410557,9.90139141,133.73,133.66,3.39001853]
[1767491410764,3.16829141,133.73,133.66,3.39001853]
[1767491410958,4.3881612,133.72,133.66,3.39001853]
[1767491411150,0.04758776,133.71,133.68,0.05243004]
[1767491429879,0.04758776,133.71,133.68,3.44244857]
[1767491430672,1.21986979,133.75,133.68,1.27229983]
[1767491430979,1.21986979,133.75,133.69,3.28706304]
[1767491431479,3.183881,133.76,133.69,3.28706304]
[1767491431678,0.05618352,133.74,133.71,0.05569782]
[1767491432476,1.21986979,133.72,133.65,3.11856162]
[1767491433071,1.21986979,133.72,133.67,3.11856162]
[1767491433267,1.21986979,133.73,133.67,3.11856162]
[1767491433470,0.05179007,133.71,133.69,0.0490707]
[1767491445386,0.05179007,133.71,133.67,3.11856162]
[1767491446388,0.05179007,133.71,133.68,0.04820319]
[1767491453804,5.82889594,133.7,133.68,0.04820319]
[1767491454100,0.05179007,133.71,133.68,0.04820319]
[1767491454295,5.83146096,133.7,133.68,0.04820319]
[1767491454489,0.05179007,133.71,133.68,0.04820319]
[1767491454694,5.83144727,133.7,133.68,0.04820319]
[1767491454902,0.05179007,133.71,133.68,0.04820319]
[1767491455105,5.8314384,133.7,133.68,0.04820319]
[1767491455302,0.05179007,133.71,133.68,0.04820319]
[1767491455502,5.83175475,133.7,133.68,0.04820319]
[1767491455705,0.05179007,133.71,133.68,0.04820319]
[1767491455901,5.83175487,133.7,133.68,0.04820319]
[1767491456205,0.05179007,133.71,133.68,0.04820319]
[1767491456405,5.83262245,133.7,133.68,0.04820319]
[1767491456605,0.05179007,133.71,133.68,0.04820319]
[1767491456905,5.83270323,133.7,133.68,0.04820319]
[1767491457202,0.05179007,133.71,133.68,0.04820319]
[1767491457500,5.83389951,133.7,133.68,0.04820319]
[1767491457704,0.05179007,133.71,133.68,0.04820319]
[1767491457896,5.83390392,133.7,133.68,0.04820319]
[1767491458097,0.05179007,133.71,133.68,0.04820319]
[1767491458298,5.83442852,133.7,133.68,0.04820319]
[1767491458604,0.05179007,133.71,133.68,0.04820319]
[1767491458903,5.83407283,133.7,133.68,0.04820319]
[1767491459104,0.05179007,133.71,133.68,0.04820319]
[1767491459298,5.8343685,133.7,133.68,0.04820319]
[1767491459501,0.05179007,133.71,133.68,0.04820319]
[1767491459700,5.83438654,133.7,133.68,0.04820319]
[1767491459900,0.05179007,133.71,133.68,0.04820319]
[1767491460108,5.83365687,133.7,133.68,0.04820319]
[1767491460298,0.05179007,133.71,133.68,0.04820319]
[1767491460496,5.83358141,133.7,133.68,0.04820319]
[1767491460706,0.05179007,133.71,133.68,0.04820319]
[1767491460908,5.83360438,133.7,133.68,0.04820319]
[1767491461207,0.05179007,133.71,133.68,0.04820319]
[1767491461394,5.83349171,133.7,133.68,0.04820319]